bitfinex/quotes_BTCUSD_20220207
["timestamp","ask_amount","ask_price","bid_price","bid_amount"]
[1644219558642,0.56134186,42733.0,42732.0,0.027]
[1644219558852,0.500607,42733.0,42732.0,0.01431787]
[1644219559644,0.500607,42733.0,42731.0,0.01021484]
[1644219559893,0.327145,42732.0,42731.0,0.01]
[1644219560095,0.423945,42732.0,42731.0,0.01]
[1644219560293,0.523945,42732.0,42731.0,0.01]
[1644219560493,0.528945,42732.0,42731.0,0.01]
[1644219560697,0.527945,42732.0,42731.0,0.01]
[1644219561497,0.378945,42732.0,42731.0,0.01]
[1644219561695,0.373945,42732.0,42731.0,0.01]
[1644219561895,0.473945,42732.0,42731.0,0.01]
[1644219562098,0.523945,42732.0,42731.0,0.01]
[1644219562495,0.526945,42732.0,42731.0,0.01]
[1644219562896,0.477945,42732.0,42731.0,0.01]
[1644219563751,0.377945,42732.0,42731.0,0.01]
[1644219563953,0.372945,42732.0,42731.0,0.01]
[1644219564153,0.372945,42732.0,42705.0,0.18376701]
[1644219564154,0.07244169,42727.0,42721.0,0.40349816]
[1644219564654,0.07244169,42727.0,42724.0,0.22819204]
[1644219564852,0.07244169,42727.0,42725.0,0.271042]
[1644219565053,0.22736925,42728.0,42725.0,0.271042]
[1644219565253,0.22636925,42728.0,42725.0,0.271042]
[1644219566154,0.05852,42733.0,42727.0,0.05]
[1644219566356,0.0468,42741.0,42724.0,0.0022]
[1644219566357,0.327266,42737.0,42731.0,0.05]
[1644219566753,0.058511,42738.0,42731.0,0.05]
[1644219566754,0.23954268,42735.0,42731.0,0.05]
[1644219567302,0.34698959,42732.0,42731.0,0.05]
[1644219567491,0.26376885,42732.0,42731.0,0.05]
[1644219568494,0.26476885,42732.0,42727.0,0.30068214]
[1644219569094,0.26476885,42732.0,42727.0,0.00068214]
[1644219569293,0.26476885,42732.0,42726.0,0.05]
[1644219569494,0.26476885,42732.0,42727.0,0.00068213]
[1644219569694,0.08822874,42730.0,42727.0,0.00068213]
[1644219570397,0.09122874,42730.0,42727.0,0.00068213]
[1644219570595,0.09122874,42730.0,42726.0,0.05]
[1644219570795,0.09122874,42730.0,42726.0,0.05068214]
[1644219571040,0.003,42730.0,42726.0,0.05068214]
[1644219571842,0.327266,42730.0,42726.0,0.05]
[1644219572042,0.327266,42730.0,42726.0,0.05068214]
[1644219572242,0.302668,42728.0,42726.0,0.05068214]
[1644219572545,0.64616941,42728.0,42726.0,0.05068214]
[1644219572941,0.64616941,42728.0,42724.0,0.0022]
[1644219573144,0.058525,42727.0,42725.0,0.00068215]
[1644219573343,0.327266,42726.0,42725.0,0.00068215]
[1644219574143,0.327266,42726.0,42724.0,0.0022]
[1644219574545,0.331266,42726.0,42724.0,0.0022]
[1644219575194,0.57227602,42726.0,42724.0,0.0022]
[1644219575791,0.56827602,42726.0,42724.0,0.0022]
[1644219576395,0.61827602,42726.0,42724.0,0.0022]
[1644219576594,0.58022705,42725.0,42724.0,0.0022]
[1644219577395,0.79619204,42725.0,42724.0,0.0022]
[1644219577800,0.94619204,42725.0,42724.0,0.0022]
[1644219577997,0.66863299,42725.0,42724.0,0.0022]
[1644219578645,0.376668,42725.0,42724.0,0.0022]
[1644219579747,0.352668,42725.0,42724.0,0.0022]
[1644219580646,0.379668,42725.0,42724.0,0.0082]
[1644219581051,0.37779472,42725.0,42724.0,0.0082]
[1644219581246,0.47779472,42725.0,42724.0,0.0082]
[1644219581848,0.45079472,42725.0,42724.0,0.0022]
[1644219582490,0.47779472,42725.0,42724.0,0.0082]
[1644219582896,0.329668,42725.0,42724.0,0.0082]
[1644219583093,0.027,42725.0,42724.0,0.0082]
[1644219583694,0.027,42725.0,42724.0,0.379466]
[1644219583896,0.058518,42730.0,42724.0,0.379466]
[1644219583897,0.058518,42730.0,42725.0,0.08034536]
[1644219584096,0.5,42729.0,42725.0,0.08034536]
[1644219584295,0.5,42729.0,42728.0,0.05]
[1644219584497,0.827266,42729.0,42728.0,0.05]
[1644219585197,0.827266,42729.0,42726.0,0.00089541]
[1644219585401,0.302668,42727.0,42726.0,0.00068154]
[1644219585697,0.302668,42727.0,42726.0,0.00089541]
[1644219585898,0.302668,42727.0,42726.0,0.00068154]
[1644219586144,0.302668,42727.0,42725.0,0.06621387]
[1644219586344,0.12437384,42728.0,42724.0,0.00309544]
[1644219586547,0.003,42727.0,42726.0,0.012]
[1644219587846,0.45797609,42730.0,42725.0,0.05021387]
[1644219588050,0.45797609,42730.0,42724.0,0.00309544]
[1644219588449,0.30797609,42730.0,42725.0,0.05]
[1644219588648,0.30797609,42730.0,42725.0,0.05021387]
[1644219588649,0.066518,42730.0,42725.0,0.05021387]
[1644219588948,0.066518,42730.0,42725.0,0.05089543]
[1644219589549,0.066518,42730.0,42725.0,0.00089543]
[1644219589550,0.26979262,42730.0,42725.0,0.00089543]
[1644219589798,0.26179262,42730.0,42725.0,0.00021387]
[1644219589993,0.26179262,42730.0,42725.0,0.05068155]
[1644219590294,0.26179262,42730.0,42725.0,0.05089542]
[1644219590491,0.26879262,42730.0,42725.0,0.06789542]
[1644219590904,0.31879262,42730.0,42725.0,0.06721387]
[1644219591093,0.115518,42730.0,42725.0,0.06789542]
[1644219591296,0.065518,42730.0,42725.0,0.06789542]
[1644219591494,0.065518,42730.0,42726.0,0.2562893]
[1644219591694,0.065518,42730.0,42726.0,0.25650317]
[1644219591893,0.058518,42730.0,42726.0,0.25650317]
[1644219592094,0.058518,42730.0,42726.0,0.00021387]
[1644219592293,0.058518,42730.0,42726.0,0.00068155]
[1644219592493,0.058518,42730.0,42728.0,0.07049476]
[1644219592692,0.058518,42730.0,42727.0,0.00021387]
[1644219592893,0.058518,42730.0,42726.0,0.00089542]
[1644219593195,0.058518,42730.0,42726.0,0.17904248]
[1644219593644,0.058518,42730.0,42725.0,0.30809914]
[1644219593844,0.058518,42730.0,42725.0,0.05]
[1644219594045,0.058518,42730.0,42725.0,0.13648985]
[1644219594245,0.05,42733.0,42725.0,0.13648985]
[1644219594446,0.37256869,42734.0,42725.0,0.13648985]
[1644219594745,0.005,42730.0,42725.0,0.15248985]
[1644219595347,0.063518,42730.0,42728.0,0.22265235]
[1644219595767,0.058518,42730.0,42729.0,0.05]
[1644219596148,0.058518,42730.0,42729.0,0.3278921]
[1644219596348,0.058511,42737.0,42729.0,0.3278921]
[1644219596548,0.01,42730.0,42729.0,0.3438921]
[1644219596749,0.01,42730.0,42729.0,0.6711581]
[1644219597149,0.01,42730.0,42729.0,0.88656867]
[1644219597996,0.01,42730.0,42729.0,1.13710238]
[1644219598196,0.01,42730.0,42729.0,0.88656867]
[1644219598401,0.058511,42737.0,42729.0,0.88656867]
[1644219598405,0.00018738,42732.0,42729.0,0.87056867]
[1644219598597,0.00018738,42732.0,42731.0,0.05]
[1644219598899,0.00018738,42732.0,42731.0,0.68531843]
[1644219599498,0.175558,42742.0,42736.0,0.43301036]
[1644219599700,0.175558,42742.0,42741.0,0.05]
[1644219599701,0.502824,42742.0,42741.0,0.05]
[1644219600099,0.502824,42742.0,42738.0,0.05]
[1644219600299,0.502824,42742.0,42737.0,0.28350127]
[1644219600300,0.175558,42742.0,42741.0,0.05]
[1644219600500,0.177558,42742.0,42741.0,0.017]
[1644219600699,0.504824,42742.0,42741.0,0.017]
[1644219601749,0.504824,42742.0,42738.0,0.05]
[1644219601951,0.175558,42742.0,42738.0,0.05]
[1644219602150,0.175558,42742.0,42739.0,0.25722609]
[1644219602552,0.175558,42742.0,42738.0,0.07]
[1644219602952,0.175558,42742.0,42741.0,0.05]
[1644219603153,0.50344785,42742.0,42741.0,0.05]
[1644219604154,0.502824,42742.0,42739.0,0.05]
[1644219604352,0.302668,42741.0,42739.0,0.05]
[1644219605492,0.302668,42741.0,42739.0,0.01980639]
[1644219605893,0.17618185,42742.0,42739.0,0.01980639]
[1644219606295,0.00062385,42742.0,42739.0,0.16631639]
[1644219606494,0.00062385,42742.0,42740.0,0.2925795]
[1644219606696,0.116987,42749.0,42740.0,0.2925795]
[1644219606895,0.116987,42749.0,42746.0,0.01980639]
[1644219607396,0.327266,42748.0,42746.0,0.01980639]
[1644219608548,0.327266,42748.0,42746.0,0.021]
[1644219609849,0.4450044,42742.0,42740.0,0.01980639]
[1644219610153,0.5035104,42742.0,42740.0,0.01980639]
[1644219610655,0.5035104,42742.0,42740.0,0.03980639]
[1644219611259,0.327266,42741.0,42740.0,0.03980639]
[1644219611750,0.5035104,42742.0,42740.0,0.03980639]
[1644219611751,0.25474988,42742.0,42740.0,0.03980639]
[1644219612151,0.058506,42742.0,42740.0,0.01980639]
[1644219612597,0.058506,42742.0,42740.0,0.03880639]
[1644219613796,0.058506,42742.0,42740.0,0.01980639]
[1644219614595,0.058506,42742.0,42740.0,0.03780639]
[1644219614995,0.058506,42742.0,42740.0,0.018]
[1644219615596,0.058506,42742.0,42741.0,0.01980639]
[1644219616647,0.058506,42742.0,42741.0,0.03880639]
[1644219617848,0.058506,42742.0,42741.0,0.01980639]
[1644219618650,0.058506,42742.0,42741.0,0.03980639]
[1644219619893,0.058506,42742.0,42741.0,0.01980639]
[1644219620693,0.058506,42742.0,42741.0,0.03880639]
[1644219620894,0.13951769,42742.0,42741.0,0.019]
[1644219621093,0.46678369,42742.0,42741.0,0.019]
[1644219621895,0.46678369,42742.0,42736.0,0.31980639]
[1644219622094,0.13951769,42742.0,42736.0,0.31980639]
[1644219622598,0.00062385,42741.0,42736.0,0.33980639]
[1644219622994,0.00062385,42741.0,42739.0,0.01980639]
[1644219623394,0.058506,42742.0,42739.0,0.01980639]
[1644219623642,0.05912985,42742.0,42739.0,0.01980639]
[1644219624247,0.05912985,42742.0,42736.0,0.3]
[1644219624642,0.058506,42742.0,42739.0,0.021]
[1644219624942,0.00062385,42741.0,42739.0,0.021]
[1644219625944,0.058506,42742.0,42736.0,0.3]
[1644219626144,0.05912985,42742.0,42736.0,0.3]
[1644219626746,0.05912985,42742.0,42736.0,0.321]
[1644219627144,0.058506,42742.0,42736.0,0.321]
[1644219627396,0.00062385,42741.0,42736.0,0.321]
[1644219627896,0.00062385,42741.0,42736.0,0.3]
[1644219628395,0.00062385,42741.0,42734.0,0.20037647]
[1644219628595,0.00062385,42741.0,42736.0,0.021]
[1644219629497,0.108506,42742.0,42736.0,0.021]
[1644219629698,0.00062385,42741.0,42736.0,0.28357193]
[1644219629896,0.00062385,42741.0,42736.0,0.26257193]
[1644219630597,0.108506,42742.0,42736.0,0.26257193]
[1644219630796,0.00018728,42741.0,42736.0,0.4829484]
[1644219631646,0.00018728,42741.0,42736.0,0.02]
[1644219631847,0.058506,42742.0,42736.0,0.02]
[1644219632046,0.00018728,42741.0,42735.0,0.20037647]
[1644219632246,0.05,42739.0,42736.0,0.327266]
[1644219632747,0.05,42739.0,42736.0,0.78639048]
[1644219634147,0.058506,42742.0,42736.0,0.78639048]
[1644219634349,0.058506,42742.0,42736.0,0.20037647]
[1644219634548,0.00062385,42740.0,42736.0,0.20037647]
[1644219634806,0.00062385,42740.0,42737.0,0.20037647]
[1644219635401,0.058506,42742.0,42737.0,0.20037647]
[1644219635602,0.00062385,42741.0,42738.0,0.20037647]
[1644219636602,0.058506,42742.0,42738.0,0.20037647]
[1644219636802,0.05912985,42742.0,42738.0,0.21937647]
[1644219637202,0.05,42739.0,42738.0,0.21937647]
[1644219637404,0.05,42739.0,42738.0,0.019]
[1644219637604,0.05912985,42742.0,42738.0,0.019]
[1644219637804,0.05,42740.0,42738.0,0.019]
[1644219638004,0.05,42740.0,42737.0,0.20037647]
[1644219638205,0.05912985,42742.0,42738.0,0.20037647]
[1644219638407,0.05,42739.0,42738.0,0.20037647]
[1644219638644,0.05,42739.0,42738.0,0.21937647]
[1644219639245,0.05,42739.0,42738.0,0.019]
[1644219640445,0.00062385,42741.0,42738.0,0.019]
[1644219640645,0.00062385,42741.0,42739.0,0.20045758]
[1644219640946,0.00062385,42741.0,42740.0,0.20045758]
[1644219641545,0.058506,42742.0,42740.0,0.20045758]
[1644219642046,0.058506,42742.0,42739.0,0.20045758]
[1644219642047,0.05801923,42742.0,42739.0,0.20045758]
[1644219642694,0.05801923,42742.0,42740.0,0.20045758]
[1644219642895,0.05801923,42742.0,42740.0,0.20019421]
[1644219644699,0.05801923,42742.0,42740.0,0.21719421]
[1644219644904,0.05039502,42742.0,42740.0,0.21719421]
[1644219645503,0.05039502,42742.0,42740.0,0.017]
[1644219646155,0.05039502,42742.0,42738.0,0.25054122]
[1644219646556,0.05,42739.0,42737.0,0.25054122]
[1644219646756,0.05,42739.0,42738.0,0.019]
[1644219647857,0.00062385,42741.0,42738.0,0.019]
[1644219648057,0.00062385,42741.0,42737.0,0.25054122]
[1644219648259,0.00062385,42741.0,42738.0,0.23836007]
[1644219648658,0.05039502,42742.0,42738.0,0.23836007]
[1644219648860,0.05101887,42742.0,42738.0,0.23836007]
[1644219649058,0.27665809,42742.0,42738.0,0.23836007]
[1644219649896,0.27603424,42742.0,42738.0,0.23836007]
[1644219650096,0.27665809,42742.0,42738.0,0.23836007]
[1644219650694,0.27665809,42742.0,42738.0,0.25436007]
[1644219651097,0.27603424,42742.0,42738.0,0.25436007]
[1644219651296,0.27665809,42742.0,42738.0,0.25436007]
[1644219651894,0.27665809,42742.0,42738.0,0.23836007]
[1644219652296,0.27603424,42742.0,42738.0,0.23836007]
[1644219652496,0.05,42740.0,42735.0,0.30036943]
[1644219652696,0.05,42740.0,42738.0,0.016]
[1644219652895,0.05,42740.0,42739.0,0.20054308]
[1644219654244,0.02764333,42740.0,42739.0,0.20055278]
[1644219654444,0.27665809,42742.0,42739.0,0.20055278]
[1644219654746,0.04064333,42740.0,42739.0,0.006]
[1644219654944,0.04064333,42740.0,42739.0,0.2065536]
[1644219655347,0.013,42740.0,42739.0,0.006]
[1644219655945,0.27603424,42742.0,42739.0,0.20054878]
[1644219656145,0.27665809,42742.0,42739.0,0.20054878]
[1644219656344,0.02764333,42740.0,42739.0,0.20054878]
[1644219656545,0.02764333,42740.0,42738.0,0.20054878]
[1644219656745,0.02764333,42740.0,42733.0,0.25643022]
[1644219656746,0.02764333,42740.0,42739.0,0.013]
[1644219657904,0.02764333,42740.0,42737.0,0.20054878]
[1644219658104,0.20042397,42741.0,42737.0,0.20054878]
[1644219658310,0.02764333,42738.0,42737.0,0.20054878]
[1644219658704,0.02764333,42738.0,42737.0,0.21754878]
[1644219659606,0.1013379,42738.0,42737.0,0.21754878]
[1644219660006,0.30176187,42738.0,42733.0,0.20054878]
[1644219660207,0.30176187,42738.0,42730.0,0.20054878]
[1644219660208,0.02764333,42734.0,42730.0,0.20054878]
[1644219660406,0.02764333,42731.0,42729.0,0.20076136]
[1644219660607,0.07700493,42730.0,42728.0,0.20076136]
[1644219660808,0.07700493,42730.0,42728.0,0.20054878]
[1644219661247,0.07700493,42730.0,42727.0,0.20054878]
[1644219661649,0.07700493,42730.0,42726.0,0.20054878]
[1644219661650,0.02764333,42728.0,42726.0,0.20054878]
[1644219662048,0.02764333,42728.0,42725.0,0.20076136]
[1644219662251,0.02764333,42728.0,42724.0,0.00309451]
[1644219662848,0.327266,42727.0,42725.0,0.02]
[1644219663050,0.33548191,42726.0,42725.0,0.02021258]
[1644219663249,0.66274791,42726.0,42725.0,0.02]
[1644219664051,0.66274791,42726.0,42724.0,0.0030945]
[1644219664252,0.66274791,42726.0,42723.0,0.00231258]
[1644219664253,0.28994573,42725.0,42723.0,0.00231258]
[1644219664453,0.28994573,42725.0,42723.0,0.00278192]
[1644219664454,0.19784492,42724.0,42723.0,0.00278192]
[1644219664652,0.49417865,42724.0,42723.0,0.00278192]
[1644219665502,0.49417865,42724.0,42723.0,0.0021]
[1644219666105,0.19784492,42724.0,42723.0,0.0021]
[1644219666302,0.47493413,42724.0,42723.0,0.0021]
[1644219666702,0.47493413,42724.0,42723.0,0.0211]
[1644219666904,0.19784492,42724.0,42723.0,0.0211]
[1644219667103,0.47573607,42724.0,42723.0,0.0211]
[1644219667303,0.19784492,42724.0,42723.0,0.0211]
[1644219667705,0.0468,42725.0,42723.0,0.0211]
[1644219667908,0.14471433,42726.0,42723.0,0.0021]
[1644219667909,0.117071,42726.0,42723.0,0.0021]
[1644219668848,0.117071,42726.0,42723.0,0.0271]
[1644219669452,0.117071,42726.0,42723.0,0.02731258]
[1644219670049,0.11644742,42726.0,42723.0,0.00231258]
[1644219670348,0.11644742,42726.0,42724.0,0.00046]
[1644219670751,0.058524,42727.0,42724.0,0.02281667]
[1644219670950,0.058524,42727.0,42724.0,0.02302925]
[1644219672798,0.058524,42727.0,42724.0,0.04602925]
[1644219673396,0.058524,42727.0,42724.0,0.04539068]
[1644219674001,0.058524,42727.0,42724.0,0.02239068]
[1644219674799,0.058524,42727.0,42724.0,0.04539068]
[1644219676157,0.058524,42727.0,42724.0,0.02239068]
[1644219676757,0.058524,42727.0,42724.0,0.04739068]
[1644219678057,0.058524,42727.0,42724.0,0.00021258]
[1644219678255,0.058524,42727.0,42723.0,0.00278192]
[1644219678656,0.058524,42727.0,42723.0,0.0021]
[1644219678857,0.058524,42727.0,42723.0,0.02878193]
[1644219679659,0.058524,42727.0,42723.0,0.02899451]
[1644219679899,0.058524,42727.0,42723.0,0.02331258]
[1644219680100,0.058524,42727.0,42723.0,0.00089451]
[1644219680601,0.058524,42727.0,42723.0,0.00068193]
[1644219680800,0.0863459,42727.0,42723.0,0.02668193]
[1644219681000,0.0863459,42727.0,42723.0,0.026]
[1644219681199,0.0863459,42727.0,42723.0,0.02668193]
[1644219682001,0.0863459,42727.0,42723.0,0.00068193]
[1644219682201,0.058524,42727.0,42722.0,0.00021258]
[1644219682402,0.0863459,42727.0,42723.0,0.00068193]
[1644219683003,0.0863459,42727.0,42723.0,0.00089451]
[1644219683404,0.0863459,42727.0,42723.0,0.00021258]
[1644219683650,0.0863459,42727.0,42723.0,0.00068193]
[1644219683851,0.0863459,42727.0,42723.0,0.00089451]
[1644219684052,0.0278219,42726.0,42723.0,0.00089451]
[1644219684255,0.00062382,42730.0,42723.0,0.00068193]
[1644219684454,0.00062382,42730.0,42723.0,0.00089451]
[1644219684653,0.37591766,42732.0,42723.0,0.00021258]
[1644219684953,0.00062384,42730.0,42724.0,0.00068192]
[1644219685352,0.058524,42727.0,42724.0,0.0008945]
[1644219685954,0.058524,42727.0,42724.0,0.00021258]
[1644219686154,0.058524,42727.0,42723.0,0.0008945]
[1644219686354,0.058524,42727.0,42725.0,0.05]
[1644219686556,0.058524,42727.0,42723.0,0.0008945]
[1644219686758,0.058524,42727.0,42723.0,0.02868192]
[1644219687055,0.058524,42727.0,42723.0,0.028]
[1644219687306,0.058524,42727.0,42723.0,0.02868193]
[1644219687697,0.058524,42727.0,42723.0,0.26390317]
[1644219687898,0.058524,42727.0,42725.0,0.07954687]
[1644219688498,0.058524,42727.0,42724.0,0.00068192]
[1644219688899,0.068524,42727.0,42725.0,0.013]
[1644219689701,0.068524,42727.0,42725.0,0.00082288]
[1644219690102,0.058524,42727.0,42724.0,0.0008945]
[1644219690304,0.058524,42727.0,42724.0,0.00068192]
[1644219690702,0.058524,42727.0,42722.0,0.00021258]
[1644219690907,0.066524,42727.0,42725.0,0.23256518]
[1644219691151,0.066524,42727.0,42724.0,0.015]
[1644219691349,0.066524,42727.0,42724.0,0.01521258]
[1644219691952,0.066524,42727.0,42724.0,0.00021258]
[1644219692150,0.058524,42727.0,42723.0,0.07077928]
[1644219692750,0.058524,42727.0,42723.0,0.09277928]
[1644219693250,0.058524,42727.0,42723.0,0.09277929]
[1644219694051,0.058524,42727.0,42723.0,0.07077929]
[1644219694252,0.058524,42727.0,42722.0,0.00021258]
[1644219694455,0.058524,42727.0,42723.0,0.00068193]
[1644219695110,0.058524,42727.0,42723.0,0.00089451]
[1644219695510,0.058524,42727.0,42723.0,0.00021258]
[1644219695710,0.058524,42727.0,42723.0,0.00068193]
[1644219695911,0.058524,42727.0,42723.0,0.00089451]
[1644219696513,0.21032332,42724.0,42721.0,0.1918058]
[1644219696913,0.21032332,42724.0,42723.0,0.009]
[1644219698113,0.21032332,42724.0,42721.0,0.1918058]
[1644219698315,0.2074514,42723.0,42721.0,0.1918058]
[1644219698753,0.21032332,42724.0,42721.0,0.2018058]
[1644219698954,0.021,42723.0,42721.0,0.2018058]
[1644219700256,0.02037639,42723.0,42721.0,0.2018058]
[1644219700856,0.04137639,42723.0,42721.0,0.2118058]
[1644219701357,0.04107606,42723.0,42721.0,0.2118058]
[1644219701757,0.04023793,42723.0,42721.0,0.2118058]
[1644219702603,0.021,42723.0,42721.0,0.1918058]
[1644219702903,0.45274991,42724.0,42721.0,0.1918058]
[1644219703304,0.21032332,42724.0,42721.0,0.1918058]
[1644219704105,0.11706,42725.0,42721.0,0.1918058]
[1644219704306,0.11706,42725.0,42721.0,0.39235458]
[1644219704904,0.11706,42725.0,42721.0,0.41635458]
[1644219705107,0.32711025,42725.0,42721.0,0.41635458]
[1644219705405,0.08324221,42724.0,42721.0,0.41703653]
[1644219706050,0.08324221,42724.0,42721.0,0.21648775]
[1644219706250,0.08324221,42724.0,42721.0,0.2158058]
[1644219706850,0.10824221,42724.0,42721.0,0.2008058]
[1644219707552,0.025,42724.0,42721.0,0.2008058]
[1644219708251,0.11706,42725.0,42721.0,0.1918058]
[1644219708452,0.39523551,42725.0,42721.0,0.1918058]
[1644219708653,0.65772957,42725.0,42721.0,0.1918058]
[1644219708851,0.65972957,42725.0,42721.0,0.20848763]
[1644219709652,0.327266,42724.0,42721.0,0.20848763]
[1644219709904,0.327266,42724.0,42721.0,0.2078058]
[1644219710103,0.327266,42724.0,42721.0,0.1918058]
[1644219710900,0.331266,42724.0,42721.0,0.2088058]
[1644219711301,0.07331307,42723.0,42721.0,0.2088058]
[1644219712101,0.07331307,42723.0,42721.0,0.1918058]
[1644219712900,0.07331307,42723.0,42721.0,0.2158058]
[1644219714250,0.32331307,42723.0,42717.0,0.0451]
[1644219714449,0.07331307,42723.0,42718.0,0.20052705]
[1644219714950,0.07331307,42723.0,42718.0,0.00021105]
[1644219715153,0.07331307,42723.0,42717.0,0.2798381]
[1644219715349,0.2769577,42722.0,42717.0,0.2798381]
[1644219715949,0.2769577,42722.0,42717.0,0.07931105]
[1644219716249,0.2769577,42722.0,42717.0,0.04531105]
[1644219716850,0.2839577,42722.0,42717.0,0.06431105]
[1644219717303,0.2839577,42722.0,42717.0,0.06480524]
[1644219718102,0.2769577,42722.0,42717.0,0.04580524]
[1644219718303,0.2769577,42722.0,42717.0,0.04531105]
[1644219718503,0.2769577,42722.0,42717.0,0.04599292]
[1644219718704,0.27969237,42722.0,42717.0,0.04599292]
[1644219718904,0.28269237,42722.0,42717.0,0.06399292]
[1644219719506,0.28269237,42722.0,42717.0,0.06331105]
[1644219719705,0.28269237,42722.0,42717.0,0.06399292]
[1644219720104,0.27969237,42722.0,42717.0,0.04599292]
[1644219720705,0.27969237,42722.0,42717.0,0.04531105]
[1644219720907,0.27969237,42722.0,42717.0,0.06999292]
[1644219721854,0.27969237,42722.0,42717.0,0.06931105]
[1644219722055,0.27969237,42722.0,42717.0,0.04599292]
[1644219722856,0.27969237,42722.0,42717.0,0.06399292]
[1644219723054,0.17331307,42723.0,42717.0,0.06331105]
[1644219723055,0.07331307,42723.0,42717.0,0.06331105]
[1644219723257,0.07331307,42723.0,42717.0,0.06399292]
[1644219724257,0.07331307,42723.0,42717.0,0.04531105]
[1644219724457,0.07331307,42723.0,42718.0,0.00068187]
[1644219724657,0.07331307,42723.0,42718.0,0.00089292]
[1644219725503,0.07331307,42723.0,42718.0,0.00021105]
[1644219725700,0.07331307,42723.0,42718.0,0.00068187]
[1644219725900,0.07331307,42723.0,42718.0,0.00089292]
[1644219726705,0.07331307,42723.0,42718.0,0.00021105]
[1644219726903,0.07331307,42723.0,42718.0,0.01868187]
[1644219727101,0.07331307,42723.0,42718.0,0.01889292]
[1644219727901,0.07331307,42723.0,42718.0,0.01821105]
[1644219728104,0.07331307,42723.0,42718.0,0.00089292]
[1644219728958,0.07331307,42723.0,42718.0,0.01789292]
[1644219729159,0.07331307,42723.0,42718.0,0.01721105]
[1644219729361,0.07331307,42723.0,42718.0,0.01789292]
[1644219730162,0.07331307,42723.0,42719.0,0.05]
[1644219730364,0.07331307,42723.0,42719.0,0.05021105]
[1644219730563,0.07331307,42723.0,42718.0,0.00089292]
[1644219730765,0.07331307,42723.0,42718.0,0.00068187]
[1644219730963,0.07331307,42723.0,42719.0,0.015]
[1644219731165,0.07331307,42723.0,42719.0,0.01521105]
[1644219732064,0.07331307,42723.0,42719.0,0.00021105]
[1644219732308,0.07331307,42723.0,42718.0,0.00089292]
[1644219732700,0.07331307,42723.0,42718.0,0.00021105]
[1644219732901,0.07331307,42723.0,42718.0,0.01768187]
[1644219733101,0.07331307,42723.0,42718.0,0.01726931]
[1644219734001,0.07331307,42723.0,42718.0,0.01658744]
[1644219734201,0.07331307,42723.0,42718.0,0.00089292]
[1644219735002,0.07331307,42723.0,42718.0,0.01789292]
[1644219735203,0.07331307,42723.0,42718.0,0.01721105]
[1644219735402,0.07331307,42723.0,42718.0,0.01789292]
[1644219736050,0.07331307,42723.0,42718.0,0.00089292]
[1644219736251,0.07331307,42723.0,42718.0,0.00021105]
[1644219736454,0.07331307,42723.0,42718.0,0.00068187]
[1644219736652,0.07331307,42723.0,42718.0,0.00089292]
[1644219736851,0.08331307,42723.0,42718.0,0.01089292]
[1644219737451,0.08331307,42723.0,42718.0,0.01021105]
[1644219737651,0.08331307,42723.0,42718.0,0.01089292]
[1644219738251,0.07331307,42723.0,42718.0,0.00089292]
[1644219738652,0.07331307,42723.0,42718.0,0.00021105]
[1644219738851,0.07331307,42723.0,42718.0,0.01668187]
[1644219739051,0.07331307,42723.0,42718.0,0.01689292]
[1644219739254,0.27373704,42723.0,42718.0,0.01689292]
[1644219739900,0.27373704,42723.0,42718.0,0.01621105]
[1644219740101,0.27373704,42723.0,42718.0,0.00089292]
[1644219740303,0.07331307,42723.0,42718.0,0.00089292]
[1644219740502,0.27373704,42723.0,42718.0,0.00089292]
[1644219740901,0.27373704,42723.0,42718.0,0.01789292]
[1644219741105,0.27373704,42723.0,42718.0,0.01721105]
[1644219741301,0.27373704,42723.0,42718.0,0.01789292]
[1644219741502,0.20042397,42722.0,42718.0,0.01789292]
[1644219741704,0.33753188,42721.0,42718.0,0.01789292]
[1644219742106,0.33753188,42721.0,42718.0,0.00089292]
[1644219742305,0.33753188,42721.0,42718.0,0.00021105]
[1644219742506,0.33753188,42721.0,42717.0,0.04599292]
[1644219742904,0.33753188,42721.0,42718.0,0.016]
[1644219743104,0.33753188,42721.0,42718.0,0.01621105]
[1644219744053,0.33753188,42721.0,42718.0,0.00021105]
[1644219744253,0.22655619,42718.0,42716.0,0.00526754]
[1644219744456,0.22655619,42718.0,42717.0,0.00021106]
[1644219744655,0.22655619,42718.0,42716.0,0.00526754]
[1644219744854,0.22655619,42718.0,42716.0,0.02626754]
[1644219746258,0.22655619,42718.0,42716.0,0.00526754]
[1644219746860,0.22655619,42718.0,42716.0,0.02826754]
[1644219748201,0.22655619,42718.0,42716.0,0.00526754]
[1644219748899,0.22655619,42718.0,42716.0,0.02826754]
[1644219749302,0.27792613,42717.0,42716.0,0.02826754]
[1644219750100,0.27792613,42717.0,42716.0,0.00526754]
[1644219750301,0.27547801,42717.0,42716.0,0.00526754]
[1644219750502,0.32021047,42717.0,42716.0,0.00526754]
[1644219750902,0.32021047,42717.0,42716.0,0.01826754]
[1644219750903,0.32721047,42717.0,42716.0,0.01826754]
[1644219752750,0.32021047,42717.0,42716.0,0.00526754]
[1644219752952,0.26882463,42716.0,42710.0,0.80698394]
[1644219753152,0.40175445,42715.0,42710.0,0.5562952]
[1644219753750,0.40175445,42715.0,42709.0,0.25268874]
[1644219753950,0.40175445,42715.0,42709.0,0.30268874]
[1644219754151,0.3513605,42715.0,42709.0,0.30268874]
[1644219754550,0.3513605,42715.0,42710.0,0.25068874]
[1644219755006,0.00815005,42715.0,42709.0,0.32268874]
[1644219755606,0.00815005,42715.0,42710.0,0.25068874]
[1644219755805,0.00815005,42715.0,42710.0,0.25118199]
[1644219756006,0.00815005,42715.0,42710.0,0.00049325]
[1644219756608,0.00815005,42715.0,42710.0,0.25118199]
[1644219756807,0.00815005,42715.0,42710.0,0.25068874]
[1644219757011,0.00815005,42715.0,42710.0,0.27137069]
[1644219758009,0.00815005,42715.0,42710.0,0.27068874]
[1644219758208,0.00815005,42715.0,42710.0,0.25137069]
[1644219759151,0.00815005,42715.0,42710.0,0.27068874]
[1644219759351,0.00815005,42715.0,42710.0,0.27137069]
[1644219760149,0.00815005,42715.0,42710.0,0.25137069]
[1644219760350,0.00815005,42715.0,42710.0,0.25068874]
[1644219760551,0.00815005,42715.0,42710.0,0.25137069]
[1644219761051,0.00815005,42715.0,42710.0,0.27137069]
[1644219761253,0.00815005,42715.0,42710.0,0.26637069]
[1644219761450,0.00815005,42715.0,42710.0,0.26568874]